bitfinex/quotes_ETHUSD_20241023
["timestamp","ask_amount","ask_price","bid_price","bid_amount"]
[1729654660229,3.4504,2608.4,2608.1,0.8173]
[1729654666930,5.14661972,2608.2,2607.9,0.8147]
[1729654667131,3.45076,2608.2,2607.9,0.8147]
[1729654668627,3.45076,2608.2,2607.8,0.8147]
[1729654668839,5.14661972,2608.2,2607.8,1.95700347]
[1729654669064,3.45076,2608.2,2607.8,1.95700347]
[1729654671263,4.24282,2608.3,2607.8,5.40811347]
[1729654671558,4.24282,2608.3,2607.8,6.28874708]
[1729654671853,4.24282,2608.3,2607.9,3.45103]
[1729654672059,4.24282,2608.3,2607.9,4.59460668]
[1729654672422,3.46052,2608.4,2607.9,4.59460668]
[1729654672621,3.45054,2608.3,2607.9,4.59460668]
[1729654672824,3.45054,2608.3,2607.9,4.67128825]
[1729654674747,3.45054,2608.3,2607.9,4.59460668]
[1729654675063,3.45054,2608.3,2607.9,4.67128829]
[1729654675860,3.45054,2608.3,2608.0,0.62899383]
[1729654677453,3.45067,2608.2,2607.8,1.61864999]
[1729654677759,3.45059,2608.3,2607.9,0.07668163]
[1729654677926,3.45033,2608.5,2607.9,5.22352135]
[1729654678125,3.45033,2608.5,2608.1,0.8241]
[1729654678438,3.45029,2608.5,2608.1,4.27486]
[1729654678829,3.45041,2608.4,2608.1,0.8241]
[1729654679024,1.69585972,2608.5,2608.1,4.27484]
[1729654679252,5.14612972,2608.5,2608.1,4.84299371]
[1729654679624,5.14612972,2608.5,2608.1,1.39225371]
[1729654679972,0.01,2608.6,2608.2,0.8241]
[1729654680270,3.0,2608.8,2608.3,3.45051]
[1729654680271,3.45,2608.7,2608.3,3.45051]
[1729654680563,0.01,2608.8,2608.3,0.8241]
[1729654680770,3.45987,2608.8,2608.3,4.27452]
[1729654680931,3.45987,2608.8,2608.4,0.8605724]
[1729654681771,3.44966,2609.0,2608.5,7.72442]
[1729654681931,1.69585972,2609.0,2608.6,3.45005]
[1729654682133,3.45933,2609.2,2608.7,4.222399]
[1729654682330,0.01,2609.2,2608.8,3.52643633]
[1729654682534,0.01,2609.2,2608.8,3.44978]
[1729654682841,5.89707972,2609.3,2608.9,4.27378]
[1729654683878,1.69585972,2609.2,2608.9,0.8241]
[1729654685057,5.14546972,2609.0,2608.7,1.596529]
[1729654685264,5.14546972,2609.0,2608.7,0.8241]
[1729654685446,0.752,2609.9,2608.9,1.69585972]
[1729654685773,0.752,2609.9,2609.0,4.27362]
[1729654685774,3.44899,2609.5,2609.0,4.27362]
[1729654685961,5.14484972,2609.5,2609.0,4.27362]
[1729654686127,3.44899,2609.5,2609.1,4.39136097]
[1729654686329,3.4588,2609.6,2609.1,4.39136097]
[1729654686567,5.15465972,2609.6,2609.1,4.39136097]
[1729654686942,3.4588,2609.6,2609.1,4.39129097]
[1729654687165,0.01,2609.6,2609.2,3.44923]
[1729654687425,0.01,2609.6,2609.3,0.95363807]
[1729654687570,0.01,2609.6,2609.3,1.03027867]
[1729654687736,5.14453972,2609.7,2609.3,1.03027867]
[1729654688134,5.14453972,2609.7,2609.3,0.95363807]
[1729654688337,5.14453972,2609.7,2609.3,1.03027867]
[1729654688539,3.44868,2609.7,2609.3,4.47946867]
[1729654688862,5.14446972,2609.8,2609.4,0.44794687]
[1729654689172,5.14454972,2609.7,2609.4,0.44794687]
[1729654689560,8.59329972,2609.7,2609.4,0.44794687]
[1729654689761,3.44895,2609.5,2609.3,0.95363807]
[1729654690070,5.14480972,2609.5,2609.0,4.27368]
[1729654690275,3.44895,2609.5,2609.0,4.27368]
[1729654690479,3.44895,2609.5,2609.0,0.8241]
[1729654690480,5.14499972,2609.4,2609.0,0.8241]
[1729654690636,3.44914,2609.4,2609.0,0.8241]
[1729654690971,3.44914,2609.4,2609.1,0.59696297]
[1729654691177,3.4492,2609.3,2609.1,0.59696297]
[1729654691380,1.69585972,2609.2,2609.0,0.8241]
[1729654691555,3.44933,2609.2,2608.8,1.62464999]
[1729654692785,3.44927,2609.3,2608.8,6.84700304]
[1729654693085,3.45888,2609.6,2609.0,2.51655972]
[1729654693284,8.60363972,2609.6,2609.0,5.96607972]
[1729654693441,5.15473972,2609.6,2609.0,4.27022]
[1729654693644,8.60365972,2609.6,2609.0,5.96607972]
[1729654693951,5.15473972,2609.6,2609.1,1.02209725]
[1729654694679,3.44893,2609.5,2609.1,4.47154725]
[1729654695366,1.69585972,2609.4,2609.1,1.02209725]
[1729654695557,8.59381972,2609.5,2609.1,1.02209725]
[1729654695758,5.14478972,2609.5,2609.1,1.02209725]
[1729654696079,5.14478972,2609.5,2609.2,0.52922973]
[1729654696285,3.44893,2609.5,2609.2,0.52922973]
[1729654696868,0.01,2609.6,2609.3,0.8207]
[1729654697397,5.15466972,2609.6,2609.3,0.8207]
[1729654697595,1.70585972,2609.6,2609.3,0.8207]
[1729654697745,0.01,2609.6,2609.3,0.8207]
[1729654697950,5.14452972,2609.7,2609.3,0.8207]
[1729654697951,5.14452972,2609.7,2609.4,0.47992397]
[1729654698555,1.69585972,2609.7,2609.4,0.47992397]
[1729654699426,5.15446972,2609.8,2609.4,0.47992397]
[1729654699580,0.01,2609.8,2609.4,3.92898397]
[1729654699774,5.92182972,2609.9,2609.5,0.64455437]
[1729654700093,9.37030972,2609.9,2609.5,0.64455437]
[1729654700295,5.92182972,2609.9,2609.5,0.64455437]
[1729654700810,9.37031972,2609.9,2609.5,0.64455437]
[1729654701108,5.14441972,2609.8,2609.5,0.64455437]
[1729654701968,1.69585972,2609.8,2609.5,0.64455437]
[1729654702270,1.69585972,2609.8,2609.6,0.45735383]
[1729654702498,5.92178972,2609.9,2609.6,0.45735383]
[1729654702681,9.37027972,2609.9,2609.6,0.45735383]
[1729654702879,3.44824,2610.1,2609.8,1.69585972]
[1729654703082,3.44824,2610.1,2609.9,0.25146597]
[1729654703083,3.44827,2610.0,2609.9,0.25146597]
[1729654703367,3.44824,2610.1,2609.8,0.8188]
[1729654704197,0.01,2610.2,2609.8,0.8188]
[1729654704707,3.44815,2610.1,2609.8,0.8188]
[1729654705064,3.44796,2610.3,2609.9,2.51465972]
[1729654705271,3.44775,2610.4,2610.0,0.59631497]
[1729654705469,5.15354972,2610.5,2610.0,0.59631497]
[1729654705669,3.45769,2610.5,2610.0,4.04456497]
[1729654705902,3.45769,2610.5,2610.0,5.74037469]
[1729654706067,3.45769,2610.5,2610.1,0.65591747]
[1729654706991,0.01,2610.5,2610.2,0.8188]
[1729654707326,3.45765,2610.5,2610.2,0.8188]
[1729654708678,6.90534,2610.5,2610.2,0.8188]
[1729654708876,3.45765,2610.5,2610.2,0.8188]
[1729654713281,5.15350972,2610.5,2610.2,1.31108875]
[1729654713482,3.44801,2610.2,2609.7,4.26738]
[1729654713715,5.14386972,2610.2,2609.7,4.26738]
[1729654715079,5.14399972,2610.1,2609.7,0.8188]
[1729654715321,3.44814,2610.1,2609.7,0.8188]
[1729654715525,3.44814,2610.1,2609.8,0.47248538]
[1729654716533,5.14399972,2610.1,2609.8,0.47248538]
[1729654716821,5.14421972,2610.0,2609.7,0.8188]
[1729654716979,3.45814,2610.1,2609.7,0.8188]
[1729654717916,3.45796,2610.3,2609.9,1.69585972]
[1729654718128,3.45796,2610.3,2609.9,0.59633197]
[1729654720097,6.90591,2610.3,2609.9,0.59633197]
[1729654720425,8.60176972,2610.3,2609.9,0.59633197]
[1729654721625,5.15380972,2610.3,2609.9,0.59633197]
[1729654721820,8.60180972,2610.3,2609.9,0.59633197]
[1729654722583,3.44801,2610.2,2609.9,0.59633197]
[1729654722818,3.44801,2610.2,2609.7,4.26743]
[1729654722998,3.45788,2610.3,2609.8,3.44845]
[1729654723207,5.15373972,2610.3,2609.8,3.44845]
[1729654723525,6.90583,2610.3,2609.8,3.44845]
[1729654723724,8.60168972,2610.3,2609.9,0.94117397]
[1729654724222,3.44802,2610.2,2609.9,0.94117397]
[1729654724517,3.44802,2610.2,2609.8,3.44845]
[1729654725297,3.44802,2610.2,2609.8,3.52507534]
[1729654725611,3.44802,2610.2,2609.8,3.44845]
[1729654726581,3.44802,2610.2,2609.8,3.52507541]
[1729654726806,3.44802,2610.2,2609.8,3.44845]
[1729654727002,3.44802,2610.2,2609.9,0.426725]
[1729654727690,3.45794,2610.3,2609.9,0.426725]
[1729654728597,0.01,2610.3,2609.9,3.875125]
[1729654729234,3.45789,2610.3,2609.9,0.426725]
[1729654733498,5.15374972,2610.3,2609.9,0.426725]
[1729654733694,3.45789,2610.3,2609.9,0.426725]
[1729654735029,0.01,2610.3,2610.0,0.74002605]
[1729654735595,0.01,2610.3,2610.1,0.8108]
[1729654736338,3.45789,2610.3,2610.0,0.74002605]
[1729654736633,3.45789,2610.3,2609.9,1.237525]
[1729654737220,0.01,2610.3,2609.9,4.685925]
[1729654737448,0.01,2610.3,2609.9,4.76254758]
[1729654737814,0.01,2610.3,2609.9,4.685925]
[1729654739433,5.14360972,2610.4,2609.9,4.685925]
[1729654739619,5.14360972,2610.4,2610.0,0.8134375]
[1729654740335,1.69585972,2610.4,2610.0,0.8134375]
[1729654740639,1.69585972,2610.2,2609.9,0.8108]
[1729654740810,2.47335972,2610.2,2609.9,0.8108]
[1729654741006,1.69585972,2610.0,2609.7,4.25938]
[1729654741308,5.92145972,2610.2,2609.7,4.25938]
[1729654741636,5.92145972,2610.2,2609.7,7.70799]
[1729654741803,5.92145972,2610.2,2609.8,0.81653438]
[1729654742233,5.92145972,2610.2,2609.8,4.26506438]
[1729654742440,2.47335972,2610.2,2609.8,4.26506438]
[1729654743222,2.47335972,2610.2,2609.8,4.34169003]
[1729654743546,2.47335972,2610.2,2609.8,4.26506438]
[1729654743757,5.92116972,2610.4,2609.9,4.38114944]
[1729654743918,5.92116972,2610.4,2610.0,3.44825]
[1729654743919,2.47335972,2610.4,2610.0,3.44825]
[1729654745439,1.69585972,2610.4,2610.1,0.8108]
[1729654745767,1.69585972,2610.4,2610.1,1.67481894]
[1729654746064,0.01,2610.5,2610.2,3.44795]
[1729654746220,3.45743,2610.7,2610.3,3.44787]
[1729654746423,5.15328972,2610.7,2610.3,3.44787]
[1729654747117,5.15328972,2610.7,2610.2,3.448]
[1729654747118,8.60071972,2610.7,2610.2,3.448]
[1729654747367,5.15328972,2610.7,2610.3,3.44782]
[1729654747644,1.69585972,2610.9,2610.5,3.44748]
[1729654748062,1.69585972,2610.9,2610.6,3.44745]
[1729654748233,5.95887972,2611.1,2610.6,3.44745]
[1729654748565,1.69585972,2611.0,2610.6,4.38457497]
[1729654748767,1.69585972,2610.9,2610.6,0.93712497]
[1729654749064,7.69949,2611.3,2610.7,3.44724]
[1729654749263,5.15261972,2611.2,2610.5,5.92364972]
[1729654749468,1.69585972,2611.1,2610.6,3.44738]
[1729654749622,3.44745,2610.7,2610.5,0.80394999]
[1729654749819,0.8062,2610.7,2610.3,0.7803]
[1729654750052,4.25356,2610.7,2610.4,0.25217399]
[1729654750257,7.70099,2610.7,2610.4,0.25217399]
[1729654750420,3.4475,2610.6,2610.4,0.25217399]
[1729654751026,5.94941972,2610.7,2610.4,0.25217399]
[1729654751243,4.25356,2610.7,2610.4,0.25217399]
[1729654751448,4.25356,2610.7,2610.3,0.7803]
[1729654751646,7.70102,2610.7,2610.3,0.7803]
[1729654751849,4.25356,2610.7,2610.3,0.7803]
[1729654752079,7.70098,2610.7,2610.3,0.7803]
[1729654752658,5.94941972,2610.7,2610.3,0.7803]
[1729654752877,3.44749,2610.6,2610.3,1.19471286]
[1729654753384,5.14360972,2610.4,2610.1,0.7803]
[1729654753534,3.44762,2610.5,2609.9,1.58424999]
[1729654753535,5.14375972,2610.3,2609.9,1.58424999]
[1729654753733,1.69585972,2610.4,2609.9,0.7803]
[1729654753963,5.14359972,2610.4,2609.9,0.7803]
[1729654754170,5.14359972,2610.4,2610.0,0.67286197]
[1729654754375,5.14359972,2610.4,2609.8,4.25245999]
[1729654754376,1.69585972,2610.2,2609.8,0.80394999]
[1729654754586,5.14399972,2610.1,2609.7,1.58424999]
[1729654754737,5.14419972,2610.0,2609.7,0.7803]
[1729654755075,5.14419972,2610.0,2609.3,1.58424999]
[1729654755076,3.44855,2609.8,2609.3,1.58424999]
[1729654755387,5.14452972,2609.7,2609.3,0.7803]
[1729654755680,3.44867,2609.7,2609.3,0.7803]
[1729654755887,5.14452972,2609.7,2609.3,0.7803]
[1729654756174,5.14452972,2609.7,2609.1,3.28010971]
[1729654756381,3.44867,2609.7,2609.2,0.67296097]
[1729654757487,0.01,2609.8,2609.2,0.67296097]
[1729654757685,3.44881,2609.6,2609.2,0.67296097]
[1729654757866,3.45881,2609.6,2609.2,0.67296097]
[1729654758068,3.45881,2609.6,2609.1,0.7803]
[1729654758259,3.44894,2609.5,2609.1,0.7803]
[1729654758659,0.01,2609.6,2609.1,0.7803]
[1729654758877,4.25468,2609.9,2609.2,3.52595356]
[1729654759405,0.01,2609.7,2609.2,3.52595356]
[1729654759697,0.01,2609.7,2609.3,0.43062536]
[1729654760102,3.44861,2609.8,2609.3,0.43062536]
[1729654760305,4.26468,2609.9,2609.4,0.7803]
[1729654761300,7.71261,2610.1,2609.4,4.22933]
[1729654761464,0.01,2609.9,2609.5,0.07663502]
[1729654761661,0.01,2609.9,2609.5,0.55029406]
[1729654761865,0.01,2609.9,2609.5,0.47365904]
[1729654762545,3.4584,2609.9,2609.5,0.47365904]
[1729654762977,3.4584,2609.9,2609.4,0.7803]
[1729654765397,6.90688,2609.9,2609.4,0.7803]
[1729654765598,3.4584,2609.9,2609.4,0.7803]
[1729654766387,3.4584,2609.9,2609.5,0.07663512]
[1729654766702,3.4584,2609.9,2609.4,0.7803]
[1729654766904,3.4584,2609.9,2609.5,0.54264666]
[1729654767311,3.4584,2609.9,2609.5,0.46601154]
[1729654767534,0.01,2609.9,2609.5,0.54264668]
[1729654768508,3.44843,2609.9,2609.5,0.54264668]
[1729654768922,3.45822,2610.1,2609.6,3.44878]
[1729654769111,3.45822,2610.1,2609.7,1.21954267]
[1729654769313,3.44843,2609.9,2609.5,1.28641154]
[1729654770011,6.89692,2609.9,2609.5,1.28641154]
[1729654770175,3.44855,2609.8,2609.5,0.8204]
[1729654770775,4.20463,2609.9,2609.5,0.8204]
[1729654770985,3.44854,2609.8,2609.5,0.8204]
[1729654771188,4.21463,2609.9,2609.5,0.8204]
[1729654771371,3.44861,2609.8,2609.5,0.8204]
[1729654771576,3.44864,2609.8,2609.5,0.8204]
[1729654771815,3.44864,2609.8,2609.3,0.43062536]
[1729654772116,3.44881,2609.6,2609.4,0.47002654]
[1729654772299,3.44881,2609.6,2609.2,0.8204]
[1729654772501,0.01,2609.7,2609.2,0.8204]
[1729654772701,0.01,2609.7,2609.3,0.07664086]
[1729654773282,4.20468,2609.9,2609.3,3.52572086]
[1729654773479,4.20468,2609.9,2609.4,4.22859609]
[1729654774325,3.45835,2610.0,2609.6,3.44875]
[1729654774326,0.01,2610.0,2609.6,3.44875]
[1729654774623,3.44816,2610.1,2609.5,4.26921]
[1729654774913,3.44816,2610.1,2609.6,3.95367461]
[1729654775216,3.44816,2610.1,2609.6,0.50487461]
[1729654777103,3.44816,2610.1,2609.6,3.95366461]
[1729654777807,6.9062,2610.2,2609.6,4.03029446]
[1729654778007,6.9062,2610.2,2609.7,0.82995045]
[1729654778326,5.14081712,2610.1,2609.7,0.82995045]
[1729654778907,1.69267712,2610.1,2609.7,0.82995045]
[1729654779109,3.44842,2609.9,2609.6,0.50487461]
[1729654779309,1.69267712,2609.7,2609.5,0.8204]
[1729654779508,5.92370712,2609.9,2609.5,0.8204]
[1729654779738,3.44856,2609.8,2609.5,0.8204]
[1729654779942,2.47517712,2609.9,2609.5,1.24735]
[1729654780104,5.92339712,2610.1,2609.6,0.07663543]
[1729654780296,5.14089712,2610.1,2609.6,3.52542543]
[1729654781240,8.58913712,2610.1,2609.6,3.44879]
[1729654781448,8.58913712,2610.1,2609.6,4.43257671]
[1729654781908,5.14089712,2610.1,2609.6,4.43257671]
[1729654782734,3.44822,2610.1,2609.6,4.43257671]
[1729654782938,3.44822,2610.1,2609.6,4.50912672]
[1729654783138,5.14089712,2610.1,2609.6,4.43249671]
[1729654783444,5.14089712,2610.1,2609.7,0.52528967]
[1729654783815,1.69267712,2609.9,2609.7,0.52528967]
[1729654784022,5.92360712,2609.9,2609.5,0.8204]
[1729654784254,5.92360712,2609.9,2609.4,3.44896]
[1729654784255,5.92360712,2609.9,2609.4,3.44906]
[1729654784423,4.23093,2609.9,2609.4,3.44906]
[1729654784622,7.6794,2609.9,2609.4,3.44906]
[1729654784932,4.23093,2609.9,2609.4,3.44906]
[1729654785139,4.23093,2609.9,2609.5,0.423516]
[1729654786955,3.44854,2609.8,2609.5,0.423516]
[1729654790464,4.23091,2609.9,2609.5,0.423516]
[1729654790957,3.4486,2609.8,2609.5,0.423516]
[1729654791164,4.23091,2609.9,2609.5,0.423516]
[1729654792245,4.23091,2609.9,2609.6,0.3872506]
[1729654793760,3.44854,2609.8,2609.3,4.23522]
[1729654794164,3.44854,2609.8,2609.3,0.7861]
[1729654794467,3.44854,2609.8,2609.4,3.44906]
[1729654794756,3.44854,2609.8,2609.3,4.23529]
[1729654794956,3.45854,2609.8,2609.3,4.23529]
[1729654795177,3.45854,2609.8,2609.3,5.084134]
[1729654795518,3.44868,2609.7,2609.3,5.084134]
[1729654795961,3.45854,2609.8,2609.3,5.084134]
[1729654796237,3.45856,2609.8,2609.3,5.084044]
[1729654796661,3.45856,2609.8,2609.3,8.533174]
[1729654797126,3.45856,2609.8,2609.3,5.084044]
[1729654797327,3.45856,2609.8,2609.3,5.16068482]
[1729654798341,3.45856,2609.8,2609.4,0.59646348]
[1729654800666,0.01,2609.8,2609.5,3.44892]
[1729654800868,0.8089,2610.1,2609.8,0.8191]
[1729654801070,6.4579,2610.3,2609.8,4.26755]
[1729654801222,0.8089,2610.3,2609.9,3.44838]
[1729654801427,0.8089,2610.3,2609.9,6.89671]
[1729654801661,0.8089,2610.3,2609.9,3.44833]
[1729654802166,0.8089,2610.5,2610.0,3.44819]
[1729654802382,0.8089,2610.5,2610.3,3.44787]
[1729654802688,0.01,2610.8,2610.4,3.44766]
[1729654803553,0.01,2610.8,2610.3,3.44787]
[1729654803730,3.4465,2611.4,2610.7,3.44735]
[1729654804073,0.7989,2611.7,2610.6,0.8191]
[1729654804074,0.8089,2611.7,2610.9,0.8191]
[1729654804381,1.69072987,2611.6,2611.2,6.8932]
[1729654804578,1.69072987,2612.0,2611.2,6.8932]
[1729654804579,3.45549,2612.2,2611.6,0.8191]
[1729654804876,0.01,2612.0,2611.6,0.8191]
[1729654805595,0.7989,2610.4,2609.9,4.25230999]
[1729654805868,0.7989,2610.4,2609.7,0.02303612]
[1729654805869,3.44829,2610.0,2609.7,0.02303612]
[1729654806069,1.69072987,2609.8,2609.2,4.26833]
[1729654806368,0.01,2609.9,2609.3,3.875933]
[1729654806582,0.01,2609.9,2609.3,0.426833]
[1729654806583,3.45844,2609.9,2609.3,0.426833]
[1729654806882,0.01,2609.9,2609.3,3.876013]
[1729654807024,3.43886272,2610.3,2609.4,0.8191]
[1729654807025,0.01,2610.3,2609.4,0.8191]
[1729654807225,3.44815,2610.1,2609.4,4.26816]
[1729654807527,3.44814,2610.2,2609.5,0.4694993]
[1729654808370,3.44857,2609.8,2609.4,0.8191]
[1729654808534,3.45834,2610.0,2609.5,0.07663521]
[1729654808948,6.90672,2610.0,2609.5,0.07663521]
[1729654809151,3.45834,2610.0,2609.5,0.07663521]
[1729654809372,3.45834,2610.0,2609.4,0.8191]
[1729654809677,3.45834,2610.0,2609.5,0.426829]
[1729654809854,3.45806,2610.2,2609.5,0.426829]
[1729654810060,3.44816,2610.1,2609.4,0.8191]
[1729654810973,3.44829,2610.0,2609.4,0.8191]
[1729654811127,3.44861,2609.8,2609.4,0.8191]
[1729654811333,0.01,2609.9,2609.4,0.8191]
[1729654811529,0.01,2609.9,2609.4,1.25360327]
[1729654811731,3.45852,2609.9,2609.4,1.25360327]
[1729654811934,3.45852,2609.9,2609.5,0.07663502]
[1729654811935,0.01,2609.9,2609.5,0.07663502]
[1729654812231,0.01,2609.9,2609.5,0.07663482]
[1729654812430,3.45841,2609.9,2609.5,0.07663482]
[1729654812657,0.01,2609.9,2609.5,0.07663482]
[1729654813063,6.88720272,2610.0,2609.5,0.07663482]
[1729654813296,6.88720272,2610.0,2609.4,0.8191]
[1729654813804,3.45817,2610.1,2609.4,4.26807]
[1729654814099,3.45817,2610.1,2609.5,0.426807]
[1729654814687,3.43886272,2610.0,2609.5,0.426807]
[1729654814886,6.88724272,2610.0,2609.4,0.8191]
[1729654815466,3.44855,2609.8,2609.4,0.8191]
[1729654816670,6.88724272,2610.0,2609.4,0.8191]
[1729654817014,3.44843,2609.9,2609.4,0.8191]
[1729654817570,3.44854,2609.8,2609.4,0.8191]
[1729654818115,6.89716,2609.8,2609.4,0.8191]
[1729654818292,6.89716,2609.8,2609.1,1.61204999]
[1729654818293,3.43886272,2609.7,2609.1,1.61204999]
[1729654818502,3.44882,2609.6,2609.2,0.461205]
[1729654820179,3.44882,2609.6,2609.1,0.8081]
[1729654820930,3.43886272,2609.7,2609.1,0.8081]
[1729654821079,3.44885,2609.6,2609.1,0.8081]
[1729654822625,6.89756272,2609.7,2609.2,0.07664158]
[1729654823117,6.89756272,2609.7,2609.1,0.8081]
[1729654823324,6.88756272,2609.7,2609.2,0.425765]
[1729654824217,3.44895,2609.5,2609.1,0.8081]
[1729654824419,6.89797,2609.5,2609.1,0.8081]
[1729654824618,3.44895,2609.5,2609.1,0.8081]
[1729654832200,6.89795,2609.5,2608.9,0.8218]
[1729654832400,3.44895,2609.5,2608.9,0.8218]
[1729654832629,6.89799,2609.5,2609.0,0.427166]
[1729654832840,6.89799,2609.5,2608.9,0.8218]
[1729654833136,3.44907,2609.4,2608.9,0.8218]
[1729654833300,3.44954,2609.1,2608.7,0.8218]
[1729654833701,3.44961,2609.0,2608.7,0.8218]
[1729654833900,3.45982,2608.9,2608.7,0.8218]
[1729654834102,3.44886272,2609.1,2608.7,0.8218]
[1729654834307,3.4592,2609.3,2608.7,4.27178]
[1729654834546,3.44934,2609.2,2608.8,0.77219]
[1729654834745,3.44954,2609.1,2608.7,0.8218]
[1729654839610,3.45929,2609.3,2608.8,0.07665672]
[1729654840009,6.90859,2609.3,2608.7,4.27178]
[1729654840232,3.45929,2609.3,2608.8,3.52651528]
[1729654840625,3.45929,2609.3,2608.8,3.44986]
[1729654840825,3.45929,2609.3,2608.8,0.772164]
[1729654841328,6.90857,2609.3,2608.8,0.772164]
[1729654841638,3.44933,2609.2,2608.8,0.772164]
[1729654843249,6.90856,2609.3,2608.8,0.772164]
[1729654843451,3.45928,2609.3,2608.8,0.772164]
[1729654843607,6.90859,2609.3,2608.8,0.772164]
[1729654844035,3.44935,2609.2,2608.8,0.772164]
[1729654844444,3.44935,2609.2,2608.9,0.5043884]
[1729654844714,3.44935,2609.2,2608.7,4.27172]
[1729654845110,3.45901,2609.5,2608.8,4.22176]
[1729654845313,3.45901,2609.5,2609.0,4.22153]
[1729654845314,3.0,2609.5,2609.0,4.22153]
[1729654845517,3.0,2609.5,2609.0,7.67104]
[1729654845751,3.0,2609.5,2609.0,4.22151]
[1729654845928,6.44894,2609.5,2609.1,0.422151]
[1729654846913,3.44913,2609.4,2609.0,0.772]
[1729654847109,6.88799272,2609.4,2609.0,0.772]
[1729654847350,3.44935,2609.2,2609.0,0.772]
[1729654847740,6.89876,2609.2,2609.0,0.772]
[1729654847936,0.01,2609.0,2608.4,0.772]
[1729654848144,0.01,2609.0,2608.4,4.22239]
[1729654848145,3.4498,2608.9,2608.4,4.22239]
[1729654848348,3.44988,2608.8,2608.5,0.422239]
[1729654848528,3.44988,2608.8,2608.4,0.772]
[1729654850018,3.45005,2608.7,2608.4,0.772]
[1729654850422,3.45005,2608.7,2608.1,3.45067]
[1729654850423,3.45019,2608.6,2608.1,4.22267]
[1729654850759,3.45005,2608.7,2608.2,3.52726022]
[1729654851117,3.45005,2608.7,2608.3,3.4505]
[1729654851323,3.44886272,2608.8,2608.3,0.77497202]
[1729654851548,6.89872272,2608.8,2608.3,4.22539202]
[1729654851723,4.23306,2609.1,2608.4,4.22231]
[1729654851724,0.01,2609.0,2608.4,4.22231]
[1729654851918,3.45961,2609.0,2608.5,3.45018]
[1729654852736,3.44974,2608.9,2608.4,4.22231]
[1729654852922,3.44974,2608.9,2608.5,0.4997282]
[1729654854143,0.01,2609.0,2608.5,0.4997282]
[1729654854343,3.45964,2609.0,2608.5,3.9499782]
[1729654855723,3.45964,2609.0,2608.5,0.4997282]
[1729654858271,0.01,2609.0,2608.5,3.9499182]
[1729654858472,0.01,2609.0,2608.6,0.81722182]
[1729654858878,3.44956,2609.1,2608.6,4.26733182]
[1729654859053,3.44956,2609.1,2608.7,0.8062]
[1729654859570,6.89909,2609.1,2608.7,0.8062]
[1729654860343,3.44953,2609.1,2608.7,0.8062]
[1729654860758,6.89906,2609.1,2608.7,0.8062]
[1729654860963,3.44953,2609.1,2608.7,0.8062]
[1729654861159,3.44961,2609.0,2608.7,0.8062]
[1729654861345,3.44961,2609.0,2608.7,1.363526]
[1729654861541,3.45961,2609.0,2608.5,0.8062]
[1729654861742,3.44985,2608.9,2608.5,0.8062]
[1729654861945,4.27046272,2608.7,2608.2,0.80394999]
[1729654862257,4.27046272,2608.7,2607.9,0.8062]
[1729654862258,1.6951329,2608.4,2607.9,0.8062]
[1729654862571,4.28167,2608.7,2608.1,3.45071]
[1729654862742,7.73175,2608.7,2608.2,0.8062]
[1729654862941,5.1452629,2608.6,2608.2,0.8062]
[1729654864494,3.45013,2608.6,2608.2,0.8062]
[1729654865800,6.90032,2608.6,2608.2,0.8062]
[1729654865961,6.90032,2608.6,2608.2,1.6275861]
[1729654866904,3.45027,2608.5,2608.2,1.6275861]
[1729654867600,3.45013,2608.6,2608.2,1.6275861]
[1729654869206,0.8316,2608.7,2608.2,5.0782261]
[1729654869207,0.01,2608.7,2608.2,5.0782261]
[1729654869507,3.44987,2608.8,2608.3,3.95826261]
[1729654870106,6.8998,2608.8,2608.3,3.95826261]
[1729654870268,6.8998,2608.8,2608.3,0.50782261]
[1729654871182,3.45,2608.7,2608.3,0.50782261]
[1729654872110,6.89985,2608.8,2608.3,0.50782261]
[1729654872620,3.45,2608.7,2608.3,0.50782261]
[1729654873121,3.45,2608.7,2608.4,0.47645826]
[1729654876186,3.44987,2608.8,2608.4,0.47645826]
[1729654876512,3.44987,2608.8,2608.2,4.25681]
[1729654876513,3.45,2608.7,2608.2,4.25681]
[1729654881231,3.45016,2608.6,2608.2,4.25681]
[1729654881637,3.45,2608.7,2608.2,4.25681]
[1729654881936,3.45012,2608.6,2608.2,4.25681]
[1729654882437,3.45,2608.7,2608.2,4.25685]
[1729654882736,6.90008,2608.7,2608.2,5.2286045]
[1729654883730,3.45,2608.7,2608.2,5.2286045]
[1729654884301,5.14454737,2608.7,2608.2,5.2286045]
[1729654884497,5.14454737,2608.7,2608.2,8.6791845]
[1729654884743,5.14454737,2608.7,2608.2,5.2285345]
[1729654884949,5.14454737,2608.7,2608.3,0.60324845]
[1729654885101,3.45,2608.7,2608.3,0.60324845]
[1729654886021,5.14454737,2608.7,2608.3,0.60324845]
[1729654887440,3.45,2608.7,2608.3,0.60324845]
[1729654887746,5.14454737,2608.7,2608.3,0.60324845]
[1729654887915,3.45,2608.7,2608.3,0.60324845]
[1729654888245,5.14454737,2608.7,2608.3,0.60324845]
[1729654892399,5.14454737,2608.7,2608.3,1.40719844]
[1729654893004,8.59465737,2608.7,2608.3,1.40719844]
[1729654893204,5.14454737,2608.7,2608.3,1.40719844]
[1729654893627,8.59464737,2608.7,2608.3,1.40719844]
[1729654894106,5.14454737,2608.7,2608.3,1.40719844]
[1729654894549,8.59461737,2608.7,2608.3,1.40719844]
[1729654896755,3.45012,2608.6,2608.3,1.40719844]
[1729654897419,5.14454737,2608.7,2608.3,1.40719844]
[1729654897914,3.45012,2608.6,2608.3,1.40719844]
[1729654898119,5.14454737,2608.7,2608.3,1.40719844]
[1729654898343,8.59463737,2608.7,2608.3,1.40719844]
[1729654898730,5.14454737,2608.7,2608.3,1.40719844]
[1729654898935,8.59460737,2608.7,2608.3,1.40719844]
[1729654899126,5.14454737,2608.7,2608.3,1.40719844]
[1729654899467,3.45014,2608.6,2608.3,1.40719844]
[1729654900065,5.14454737,2608.7,2608.3,1.40719844]